[Event "Titled Tuesday Blitz October 19 2021"]
[White "Svidler, Peter"]
[Black "Abarca Gonzalez, Nicolas"]
[WhiteFideId "4102142"]
[BlackFideId "3409422"]
[WhiteElo "2709"]
[BlackElo "2504"]
[Result "1-0"]
[Round "08"]
[TimeControl "180+1"]
[Date "2021.10.19"]
[WhiteClock "0:00:55"]
[BlackClock "0:00:18"]

1. e4 {[%clk 0:02:33]}  c5 {[%clk 0:02:59]} 2. Nf3 {[%clk 0:02:32]}  d6 {[%clk 0:03:00]} 3. d4 {[%clk 0:02:33]}  cxd4 {[%clk 0:03:00]} 4. Nxd4 {[%clk 0:02:33]}  Nf6 {[%clk 0:03:01]} 5. Nc3 {[%clk 0:02:34]}  g6 {[%clk 0:03:02]} 6. g3 {[%clk 0:02:33]}  Bg7 {[%clk 0:02:59]} 7. Bg2 {[%clk 0:02:33]}  Bg4 {[%clk 0:03:00]} 8. Qd2 {[%clk 0:02:31]}  O-O {[%clk 0:02:57]} 9. h3 {[%clk 0:02:30]}  Bd7 {[%clk 0:02:57]} 10. b3 {[%clk 0:02:30]}  Nc6 {[%clk 0:02:55]} 11. Nde2 {[%clk 0:02:30]}  Qa5 {[%clk 0:02:49]} 12. Bb2 {[%clk 0:02:29]}  Rfd8 {[%clk 0:02:49]} 13. O-O-O {[%clk 0:02:26]}  Rac8 {[%clk 0:02:49]} 14. Kb1 {[%clk 0:02:26]}  Be6 {[%clk 0:02:47]} 15. Nd5 {[%clk 0:02:21]}  Qxd2 {[%clk 0:02:42]} 16. Rxd2 {[%clk 0:02:20]}  Bxd5 {[%clk 0:02:39]} 17. exd5 {[%clk 0:02:20]}  Nb4 {[%clk 0:02:36]} 18. a3 {[%clk 0:02:18]}  Na6 {[%clk 0:02:35]} 19. Re1 {[%clk 0:02:17]}  Nc5 {[%clk 0:02:22]} 20. Nd4 {[%clk 0:02:15]}  Kf8 {[%clk 0:02:21]} 21. Rde2 {[%clk 0:02:14]}  Re8 {[%clk 0:01:56]} 22. Ka2 {[%clk 0:02:04]}  a6 {[%clk 0:01:56]} 23. c4 {[%clk 0:01:58]}  Nd3 {[%clk 0:01:52]} 24. Rd1 {[%clk 0:01:47]}  Nxb2 {[%clk 0:01:52]} 25. Kxb2 {[%clk 0:01:47]}  Nd7 {[%clk 0:01:50]} 26. Ka2 {[%clk 0:01:45]}  Rc5 {[%clk 0:01:15]} 27. Rc2 {[%clk 0:01:44]}  Bxd4 {[%clk 0:01:04]} 28. Rxd4 {[%clk 0:01:44]}  b5 {[%clk 0:01:05]} 29. b4 {[%clk 0:01:20]}  Rc7 {[%clk 0:01:04]} 30. Kb3 {[%clk 0:01:21]}  Rec8 {[%clk 0:01:00]} 31. Be4 {[%clk 0:01:19]}  f5 {[%clk 0:00:45]} 32. Bd3 {[%clk 0:01:16]}  Ne5 {[%clk 0:00:36]} 33. cxb5 {[%clk 0:01:14]}  Nxd3 {[%clk 0:00:36]} 34. Rxc7 {[%clk 0:01:12]}  Rxc7 {[%clk 0:00:34]} 35. bxa6 {[%clk 0:01:08]}  Ne5 {[%clk 0:00:30]} 36. b5 {[%clk 0:01:06]}  Nd7 {[%clk 0:00:29]} 37. Rc4 {[%clk 0:01:01]}  Rxc4 {[%clk 0:00:23]} 38. Kxc4 {[%clk 0:01:01]}  Ke8 {[%clk 0:00:24]} 39. a4 {[%clk 0:00:59]}  Nb6+ {[%clk 0:00:20]} 40. Kb4 {[%clk 0:00:56]}  Nxd5+ {[%clk 0:00:21]} 41. Ka5 {[%clk 0:00:56]}  Kd7 {[%clk 0:00:21]} 42. a7 {[%clk 0:00:55]}  Nc7 {[%clk 0:00:18]} 43. b6 {[%clk 0:00:55]} 1-0


[Site "https://www.chess.com"]

[Event "Titled Tuesday Blitz October 19 2021"]
[White "Szpar, Milosz"]
[Black "Obregon, Andres Carlos"]
[WhiteFideId "1184989"]
[BlackFideId "111724"]
[WhiteElo "2285"]
[BlackElo "2572"]
[Result "0-1"]
[Round "08"]
[TimeControl "180+1"]
[Date "2021.10.19"]
[WhiteClock "0:00:31"]
[BlackClock "0:01:00"]

1. e4 {[%clk 0:03:00]}  c6 {[%clk 0:02:57]} 2. d4 {[%clk 0:02:58]}  d5 {[%clk 0:02:55]} 3. e5 {[%clk 0:02:59]}  c5 {[%clk 0:02:52]} 4. Nf3 {[%clk 0:02:58]}  Bg4 {[%clk 0:02:48]} 5. dxc5 {[%clk 0:02:55]}  Nc6 {[%clk 0:02:44]} 6. Bb5 {[%clk 0:02:51]}  Qa5+ {[%clk 0:02:39]} 7. Nc3 {[%clk 0:02:46]}  e6 {[%clk 0:02:39]} 8. Be3 {[%clk 0:02:39]}  Ne7 {[%clk 0:02:37]} 9. a3 {[%clk 0:02:33]}  Nf5 {[%clk 0:02:33]} 10. Bd4 {[%clk 0:02:21]}  Bxf3 {[%clk 0:02:13]} 11. gxf3 {[%clk 0:02:21]}  Nxd4 {[%clk 0:01:59]} 12. b4 {[%clk 0:02:16]}  Nxf3+ {[%clk 0:01:53]} 13. Qxf3 {[%clk 0:02:14]}  Qc7 {[%clk 0:01:54]} 14. Qg3 {[%clk 0:02:12]}  g6 {[%clk 0:01:50]} 15. Ba4 {[%clk 0:02:07]}  a6 {[%clk 0:01:48]} 16. f4 {[%clk 0:02:05]}  Bg7 {[%clk 0:01:47]} 17. O-O {[%clk 0:01:52]}  O-O {[%clk 0:01:45]} 18. Bb3 {[%clk 0:01:44]}  b6 {[%clk 0:01:42]} 19. Na4 {[%clk 0:01:42]}  bxc5 {[%clk 0:01:38]} 20. Nxc5 {[%clk 0:01:42]}  Rfb8 {[%clk 0:01:34]} 21. c3 {[%clk 0:01:36]}  Bf8 {[%clk 0:01:31]} 22. Nd3 {[%clk 0:01:32]}  Na5 {[%clk 0:01:31]} 23. Ba2 {[%clk 0:01:24]}  Nc4 {[%clk 0:01:28]} 24. Nf2 {[%clk 0:01:22]}  a5 {[%clk 0:01:20]} 25. Ng4 {[%clk 0:01:19]}  Bg7 {[%clk 0:01:19]} 26. Qh4 {[%clk 0:01:16]}  axb4 {[%clk 0:01:15]} 27. axb4 {[%clk 0:01:12]}  Nd2 {[%clk 0:01:13]} 28. Nf6+ {[%clk 0:01:07]}  Bxf6 {[%clk 0:01:13]} 29. exf6 {[%clk 0:01:07]}  Qd8 {[%clk 0:01:13]} 30. f5 {[%clk 0:00:59]}  Nxf1 {[%clk 0:01:11]} 31. fxe6 {[%clk 0:00:45]}  Qb6+ {[%clk 0:01:03]} 32. Kxf1 {[%clk 0:00:39]}  Qxe6 {[%clk 0:01:03]} 33. Re1 {[%clk 0:00:35]}  Qf5+ {[%clk 0:01:02]} 34. Kg1 {[%clk 0:00:36]}  Rxa2 {[%clk 0:01:01]} 35. Qf4 {[%clk 0:00:31]}  Qxf4 {[%clk 0:01:00]} 0-1


[Site "https://www.chess.com"]

[Event "Titled Tuesday Blitz October 19 2021"]
[White "Timmermans, Mark"]
[Black "Jaracz, Pawel"]
[WhiteFideId "1026399"]
[BlackFideId "1102222"]
[WhiteElo "2460"]
[BlackElo "2495"]
[Result "0-1"]
[Round "08"]
[TimeControl "180+1"]
[Date "2021.10.19"]
[WhiteClock "0:00:41"]
[BlackClock "0:00:26"]

1. Nf3 {[%clk 0:03:00]}  d5 {[%clk 0:02:59]} 2. c4 {[%clk 0:03:00]}  c6 {[%clk 0:02:59]} 3. e3 {[%clk 0:03:00]}  Nf6 {[%clk 0:02:59]} 4. b3 {[%clk 0:03:00]}  e6 {[%clk 0:02:57]} 5. Bb2 {[%clk 0:03:00]}  Nbd7 {[%clk 0:02:58]} 6. Rg1 {[%clk 0:02:58]}  Bd6 {[%clk 0:02:44]} 7. g4 {[%clk 0:02:58]}  O-O {[%clk 0:02:44]} 8. g5 {[%clk 0:02:43]}  Ne4 {[%clk 0:02:44]} 9. h4 {[%clk 0:02:41]}  f5 {[%clk 0:02:41]} 10. d3 {[%clk 0:02:40]}  Bb4+ {[%clk 0:02:34]} 11. Ke2 {[%clk 0:02:40]}  Nd6 {[%clk 0:02:34]} 12. Ne5 {[%clk 0:02:33]}  Nxe5 {[%clk 0:02:32]} 13. Bxe5 {[%clk 0:02:34]}  Nf7 {[%clk 0:02:30]} 14. Bb2 {[%clk 0:02:34]}  e5 {[%clk 0:02:28]} 15. Nd2 {[%clk 0:02:28]}  Be6 {[%clk 0:02:17]} 16. a3 {[%clk 0:02:27]}  Bd6 {[%clk 0:02:16]} 17. Qc2 {[%clk 0:02:21]}  Qe7 {[%clk 0:02:12]} 18. b4 {[%clk 0:02:11]}  a5 {[%clk 0:02:08]} 19. c5 {[%clk 0:02:03]}  Bc7 {[%clk 0:02:08]} 20. Bh3 {[%clk 0:02:00]}  e4 {[%clk 0:01:34]} 21. Nb3 {[%clk 0:01:36]}  Be5 {[%clk 0:01:31]} 22. Bd4 {[%clk 0:01:30]}  a4 {[%clk 0:01:29]} 23. Qc3 {[%clk 0:01:21]}  Bd7 {[%clk 0:01:27]} 24. Nd2 {[%clk 0:01:16]}  Bxd4 {[%clk 0:01:20]} 25. exd4 {[%clk 0:01:15]}  Rae8 {[%clk 0:01:08]} 26. Rae1 {[%clk 0:01:10]}  f4 {[%clk 0:00:56]} 27. Bxd7 {[%clk 0:01:06]}  Qxd7 {[%clk 0:00:53]} 28. dxe4 {[%clk 0:01:07]}  dxe4 {[%clk 0:00:53]} 29. Kd1 {[%clk 0:01:06]}  Kh8 {[%clk 0:00:44]} 30. Rxe4 {[%clk 0:01:03]}  Rxe4 {[%clk 0:00:42]} 31. Nxe4 {[%clk 0:01:04]}  Qd5 {[%clk 0:00:39]} 32. f3 {[%clk 0:01:02]}  Ne5 {[%clk 0:00:38]} 33. Kc2 {[%clk 0:00:50]}  Nc4 {[%clk 0:00:38]} 34. Re1 {[%clk 0:00:45]}  Rd8 {[%clk 0:00:34]} 35. Re2 {[%clk 0:00:41]}  Ne3+ {[%clk 0:00:33]} 36. Kb2 {[%clk 0:00:41]}  Nd1+ {[%clk 0:00:26]} 0-1


[Site "https://www.chess.com"]

[Event "Titled Tuesday Blitz October 19 2021"]
[White "Tristan, Leonardo"]
[Black "Kezin, Roman"]
[WhiteFideId "113816"]
[BlackFideId "24124621"]
[WhiteElo "2404"]
[BlackElo "2557"]
[Result "1-0"]
[Round "08"]
[TimeControl "180+1"]
[Date "2021.10.19"]
[WhiteClock "0:00:10"]
[BlackClock "0:00:08"]

1. d4 {[%clk 0:03:00]}  d5 {[%clk 0:02:59]} 2. Nf3 {[%clk 0:03:01]}  Nf6 {[%clk 0:02:58]} 3. Bf4 {[%clk 0:03:01]}  c5 {[%clk 0:02:59]} 4. e3 {[%clk 0:03:01]}  Nc6 {[%clk 0:02:59]} 5. Nbd2 {[%clk 0:03:01]}  Bg4 {[%clk 0:02:53]} 6. c3 {[%clk 0:03:01]}  e6 {[%clk 0:02:53]} 7. Qb3 {[%clk 0:03:01]}  Qb6 {[%clk 0:02:52]} 8. Qxb6 {[%clk 0:03:01]}  axb6 {[%clk 0:02:52]} 9. Bb5 {[%clk 0:03:02]}  Nd7 {[%clk 0:02:52]} 10. O-O {[%clk 0:03:00]}  Be7 {[%clk 0:02:52]} 11. Rfe1 {[%clk 0:02:50]}  O-O {[%clk 0:02:51]} 12. a4 {[%clk 0:02:50]}  Rfc8 {[%clk 0:02:48]} 13. h3 {[%clk 0:02:48]}  Bh5 {[%clk 0:02:48]} 14. g4 {[%clk 0:02:48]}  Bg6 {[%clk 0:02:48]} 15. Kg2 {[%clk 0:02:47]}  Nf6 {[%clk 0:02:47]} 16. Ne5 {[%clk 0:02:40]}  Nxe5 {[%clk 0:02:47]} 17. Bxe5 {[%clk 0:02:40]}  Ne8 {[%clk 0:02:42]} 18. f3 {[%clk 0:02:38]}  Nd6 {[%clk 0:02:41]} 19. Bf1 {[%clk 0:02:19]}  c4 {[%clk 0:02:26]} 20. e4 {[%clk 0:02:15]}  b5 {[%clk 0:02:11]} 21. Bxd6 {[%clk 0:01:34]}  Bxd6 {[%clk 0:02:09]} 22. exd5 {[%clk 0:01:14]}  exd5 {[%clk 0:02:07]} 23. axb5 {[%clk 0:01:14]}  Bf4 {[%clk 0:02:05]} 24. Rxa8 {[%clk 0:01:14]}  Rxa8 {[%clk 0:02:06]} 25. Nb1 {[%clk 0:01:14]}  Kf8 {[%clk 0:01:53]} 26. Na3 {[%clk 0:01:15]}  Bd2 {[%clk 0:01:53]} 27. Re5 {[%clk 0:01:11]}  Rd8 {[%clk 0:01:46]} 28. Re2 {[%clk 0:00:29]}  Bc1 {[%clk 0:01:44]} 29. Kg3 {[%clk 0:00:25]}  Bd3 {[%clk 0:01:41]} 30. Re1 {[%clk 0:00:11]}  Bxb2 {[%clk 0:01:40]} 31. Bxd3 {[%clk 0:00:12]}  cxd3 {[%clk 0:01:10]} 32. Nb1 {[%clk 0:00:11]}  Ra8 {[%clk 0:01:11]} 33. Rd1 {[%clk 0:00:12]}  Ra1 {[%clk 0:01:10]} 34. Kf4 {[%clk 0:00:12]}  Ra5 {[%clk 0:00:55]} 35. Ke3 {[%clk 0:00:11]}  Rxb5 {[%clk 0:00:55]} 36. Kxd3 {[%clk 0:00:11]}  Ra5 {[%clk 0:00:45]} 37. Nd2 {[%clk 0:00:11]}  Ba3 {[%clk 0:00:44]} 38. Rb1 {[%clk 0:00:12]}  b5 {[%clk 0:00:40]} 39. Nb3 {[%clk 0:00:11]}  Ra7 {[%clk 0:00:35]} 40. Nc5 {[%clk 0:00:11]}  Bxc5 {[%clk 0:00:19]} 41. dxc5 {[%clk 0:00:12]}  Ke7 {[%clk 0:00:15]} 42. Rxb5 {[%clk 0:00:12]}  Kd7 {[%clk 0:00:14]} 43. Rb6 {[%clk 0:00:12]}  Ra4 {[%clk 0:00:13]} 44. Rd6+ {[%clk 0:00:12]}  Kc7 {[%clk 0:00:11]} 45. Rxd5 {[%clk 0:00:12]}  Ra1 {[%clk 0:00:11]} 46. Rh5 {[%clk 0:00:09]}  h6 {[%clk 0:00:11]} 47. Rf5 {[%clk 0:00:09]}  f6 {[%clk 0:00:11]} 48. h4 {[%clk 0:00:09]}  Kc6 {[%clk 0:00:07]} 49. h5 {[%clk 0:00:10]}  Rd1+ {[%clk 0:00:06]} 50. Ke3 {[%clk 0:00:07]}  Re1+ {[%clk 0:00:06]} 51. Kd4 {[%clk 0:00:08]}  Rf1 {[%clk 0:00:06]} 52. Rf4 {[%clk 0:00:08]}  Rf2 {[%clk 0:00:06]} 53. Ke4 {[%clk 0:00:08]}  Re2+ {[%clk 0:00:06]} 54. Kf5 {[%clk 0:00:08]}  Re5+ {[%clk 0:00:05]} 55. Kg6 {[%clk 0:00:09]}  Rg5+ {[%clk 0:00:06]} 56. Kf7 {[%clk 0:00:09]}  Kxc5 {[%clk 0:00:07]} 57. Rf5+ {[%clk 0:00:09]}  Rxf5 {[%clk 0:00:07]} 58. gxf5 {[%clk 0:00:10]}  Kd5 {[%clk 0:00:08]} 59. Kxg7 {[%clk 0:00:10]}  Ke5 {[%clk 0:00:09]} 60. Kg6 {[%clk 0:00:10]}  Kf4 {[%clk 0:00:08]} 61. Kxf6 {[%clk 0:00:10]} 1-0


[Site "https://www.chess.com"]

[Event "Titled Tuesday Blitz October 19 2021"]
[White "Vallejo Diaz, Javier"]
[Black "De Silva, L M S T"]
[WhiteFideId "2256398"]
[BlackFideId "9953698"]
[WhiteElo "2644"]
[BlackElo "1621"]
[Result "1-0"]
[Round "08"]
[TimeControl "180+1"]
[Date "2021.10.19"]
[WhiteClock "0:00:15"]
[BlackClock "0:00:07"]

1. e4 {[%clk 0:03:00]}  e5 {[%clk 0:03:00]} 2. Nf3 {[%clk 0:03:00]}  Nc6 {[%clk 0:03:00]} 3. Bb5 {[%clk 0:03:01]}  a6 {[%clk 0:03:01]} 4. Ba4 {[%clk 0:03:01]}  Nf6 {[%clk 0:03:01]} 5. d3 {[%clk 0:03:01]}  b5 {[%clk 0:03:01]} 6. Bb3 {[%clk 0:03:01]}  Be7 {[%clk 0:03:02]} 7. a4 {[%clk 0:02:58]}  b4 {[%clk 0:02:59]} 8. Nbd2 {[%clk 0:02:52]}  O-O {[%clk 0:02:59]} 9. O-O {[%clk 0:02:52]}  d6 {[%clk 0:02:59]} 10. h3 {[%clk 0:02:51]}  a5 {[%clk 0:02:59]} 11. Re1 {[%clk 0:02:49]}  h6 {[%clk 0:02:59]} 12. Nf1 {[%clk 0:02:49]}  Be6 {[%clk 0:02:56]} 13. Ng3 {[%clk 0:02:42]}  Bxb3 {[%clk 0:02:53]} 14. cxb3 {[%clk 0:02:43]}  Re8 {[%clk 0:02:52]} 15. d4 {[%clk 0:02:35]}  Bf8 {[%clk 0:02:51]} 16. d5 {[%clk 0:02:31]}  Ne7 {[%clk 0:02:51]} 17. Nh4 {[%clk 0:02:30]}  Nh7 {[%clk 0:02:44]} 18. Nhf5 {[%clk 0:02:26]}  Nxf5 {[%clk 0:02:42]} 19. Nxf5 {[%clk 0:02:26]}  Qf6 {[%clk 0:02:40]} 20. Qg4 {[%clk 0:02:23]}  Kh8 {[%clk 0:02:39]} 21. Be3 {[%clk 0:02:15]}  h5 {[%clk 0:02:32]} 22. Qe2 {[%clk 0:01:56]}  g6 {[%clk 0:02:30]} 23. Ng3 {[%clk 0:01:56]}  h4 {[%clk 0:02:19]} 24. Nf1 {[%clk 0:01:55]}  Be7 {[%clk 0:02:15]} 25. Rac1 {[%clk 0:01:54]}  Bd8 {[%clk 0:02:13]} 26. Rc6 {[%clk 0:01:49]}  Rg8 {[%clk 0:02:11]} 27. Nh2 {[%clk 0:01:47]}  g5 {[%clk 0:02:10]} 28. f3 {[%clk 0:01:43]}  Qg6 {[%clk 0:02:09]} 29. Qb5 {[%clk 0:01:40]}  Bf6 {[%clk 0:00:57]} 30. Rxc7 {[%clk 0:01:37]}  Bg7 {[%clk 0:00:50]} 31. Qd3 {[%clk 0:01:27]}  Raf8 {[%clk 0:00:49]} 32. Rc6 {[%clk 0:01:18]}  f5 {[%clk 0:00:44]} 33. Rec1 {[%clk 0:00:32]}  Rf7 {[%clk 0:00:28]} 34. Rc8 {[%clk 0:00:27]}  Bf8 {[%clk 0:00:26]} 35. R1c6 {[%clk 0:00:25]}  Qf6 {[%clk 0:00:20]} 36. exf5 {[%clk 0:00:20]}  Qxf5 {[%clk 0:00:08]} 37. Qe4 {[%clk 0:00:18]}  Qf6 {[%clk 0:00:07]} 38. Ng4 {[%clk 0:00:17]}  Qg7 {[%clk 0:00:07]} 39. Ra6 {[%clk 0:00:15]}  Nf6 {[%clk 0:00:08]} 40. Nxf6 {[%clk 0:00:15]}  Rxf6 {[%clk 0:00:09]} 41. Raa8 {[%clk 0:00:15]}  Rg6 {[%clk 0:00:08]} 42. Qg4 {[%clk 0:00:15]}  Qh7 {[%clk 0:00:07]} 43. Rxf8 {[%clk 0:00:14]}  Rxf8 {[%clk 0:00:07]} 44. Rxf8+ {[%clk 0:00:14]}  Kg7 {[%clk 0:00:08]} 45. Rf5 {[%clk 0:00:15]}  Qg8 {[%clk 0:00:07]} 46. Rxg5 {[%clk 0:00:15]} 1-0


[Site "https://www.chess.com"]

[Event "Titled Tuesday Blitz October 19 2021"]
[White "Weichhold, Pawel"]
[Black "Wagner, Dennis"]
[WhiteFideId "1139703"]
[BlackFideId "24650684"]
[WhiteElo "2309"]
[BlackElo "2355"]
[Result "1-0"]
[Round "08"]
[TimeControl "180+1"]
[Date "2021.10.19"]
[WhiteClock "0:00:04"]
[BlackClock "0:00:02"]

1. e4 {[%clk 0:03:00]}  e5 {[%clk 0:02:56]} 2. Nf3 {[%clk 0:03:01]}  Nc6 {[%clk 0:02:55]} 3. Bb5 {[%clk 0:03:02]}  a6 {[%clk 0:02:55]} 4. Ba4 {[%clk 0:03:02]}  Nf6 {[%clk 0:02:56]} 5. O-O {[%clk 0:03:03]}  Be7 {[%clk 0:02:55]} 6. Re1 {[%clk 0:03:04]}  b5 {[%clk 0:02:54]} 7. Bb3 {[%clk 0:03:04]}  d6 {[%clk 0:02:55]} 8. c3 {[%clk 0:03:05]}  O-O {[%clk 0:02:55]} 9. d4 {[%clk 0:03:06]}  Bg4 {[%clk 0:02:54]} 10. Be3 {[%clk 0:03:06]}  Bh5 {[%clk 0:02:53]} 11. h3 {[%clk 0:03:06]}  exd4 {[%clk 0:02:52]} 12. cxd4 {[%clk 0:03:07]}  Na5 {[%clk 0:02:53]} 13. Bc2 {[%clk 0:03:03]}  Nc4 {[%clk 0:02:53]} 14. Bc1 {[%clk 0:03:04]}  d5 {[%clk 0:02:54]} 15. e5 {[%clk 0:02:54]}  Ne4 {[%clk 0:02:54]} 16. Nc3 {[%clk 0:02:48]}  Nxc3 {[%clk 0:02:50]} 17. bxc3 {[%clk 0:02:49]}  a5 {[%clk 0:02:51]} 18. g4 {[%clk 0:02:48]}  Bg6 {[%clk 0:02:51]} 19. Bf5 {[%clk 0:02:48]}  Ra6 {[%clk 0:02:50]} 20. Kg2 {[%clk 0:02:43]}  b4 {[%clk 0:02:49]} 21. h4 {[%clk 0:02:34]}  bxc3 {[%clk 0:02:41]} 22. h5 {[%clk 0:02:30]}  Bxf5 {[%clk 0:02:39]} 23. gxf5 {[%clk 0:02:31]}  Bb4 {[%clk 0:02:16]} 24. Rg1 {[%clk 0:02:23]}  a4 {[%clk 0:02:09]} 25. Bf4 {[%clk 0:01:40]}  Re8 {[%clk 0:02:05]} 26. Kh2 {[%clk 0:01:39]}  Nd2 {[%clk 0:01:48]} 27. Rg4 {[%clk 0:01:27]}  Qc8 {[%clk 0:01:36]} 28. Nxd2 {[%clk 0:00:54]}  Qxf5 {[%clk 0:01:15]} 29. Nf1 {[%clk 0:00:50]}  c2 {[%clk 0:01:10]} 30. Qe2 {[%clk 0:00:44]}  Qxh5+ {[%clk 0:01:09]} 31. Kg2 {[%clk 0:00:41]}  Rg6 {[%clk 0:01:07]} 32. f3 {[%clk 0:00:41]}  Qf5 {[%clk 0:00:58]} 33. Kg3 {[%clk 0:00:25]}  Ba3 {[%clk 0:00:55]} 34. Ne3 {[%clk 0:00:21]}  Rxg4+ {[%clk 0:00:28]} 35. fxg4 {[%clk 0:00:20]}  Qe4 {[%clk 0:00:28]} 36. Qxc2 {[%clk 0:00:18]}  Qxd4 {[%clk 0:00:28]} 37. Rd1 {[%clk 0:00:18]}  Qb6 {[%clk 0:00:24]} 38. Nxd5 {[%clk 0:00:16]}  Qa5 {[%clk 0:00:12]} 39. Ne3 {[%clk 0:00:15]}  Bc5 {[%clk 0:00:11]} 40. Qd2 {[%clk 0:00:14]}  Qb6 {[%clk 0:00:10]} 41. Qd3 {[%clk 0:00:13]}  h6 {[%clk 0:00:09]} 42. Nd5 {[%clk 0:00:11]}  Qb2 {[%clk 0:00:09]} 43. Rd2 {[%clk 0:00:09]}  Qa1 {[%clk 0:00:09]} 44. Rd1 {[%clk 0:00:10]}  Qxa2 {[%clk 0:00:09]} 45. Nc3 {[%clk 0:00:09]}  Qf2+ {[%clk 0:00:09]} 46. Kh3 {[%clk 0:00:09]}  g5 {[%clk 0:00:09]} 47. Bg3 {[%clk 0:00:08]}  Qb2 {[%clk 0:00:04]} 48. Ne4 {[%clk 0:00:07]}  Be7 {[%clk 0:00:04]} 49. Rf1 {[%clk 0:00:06]}  a3 {[%clk 0:00:04]} 50. Qf3 {[%clk 0:00:06]}  Rf8 {[%clk 0:00:04]} 51. Rf2 {[%clk 0:00:05]}  Qb1 {[%clk 0:00:01]} 52. Rf1 {[%clk 0:00:05]}  a2 {[%clk 0:00:02]} 53. Nc3 {[%clk 0:00:04]} 1-0


[Site "https://www.chess.com"]

[Event "Titled Tuesday Blitz October 19 2021"]
[White "Zhigalko, Sergei"]
[Black "Erdogdu, Mert"]
[WhiteFideId "13502956"]
[BlackFideId "6301495"]
[WhiteElo "2662"]
[BlackElo "2485"]
[Result "1-0"]
[Round "08"]
[TimeControl "180+1"]
[Date "2021.10.19"]
[WhiteClock "0:00:04"]
[BlackClock "0:00:08"]

1. e4 {[%clk 0:03:00]}  c5 {[%clk 0:03:00]} 2. Nf3 {[%clk 0:03:01]}  d6 {[%clk 0:03:00]} 3. d4 {[%clk 0:03:01]}  cxd4 {[%clk 0:03:01]} 4. Qxd4 {[%clk 0:03:02]}  Nc6 {[%clk 0:03:00]} 5. Bb5 {[%clk 0:03:02]}  Bd7 {[%clk 0:03:01]} 6. Bxc6 {[%clk 0:03:03]}  Bxc6 {[%clk 0:03:02]} 7. Nc3 {[%clk 0:03:03]}  Nf6 {[%clk 0:03:02]} 8. Bg5 {[%clk 0:03:04]}  e6 {[%clk 0:03:03]} 9. O-O-O {[%clk 0:03:04]}  Be7 {[%clk 0:03:03]} 10. Rhe1 {[%clk 0:03:05]}  O-O {[%clk 0:03:04]} 11. Kb1 {[%clk 0:03:05]}  b5 {[%clk 0:03:02]} 12. Bxf6 {[%clk 0:03:02]}  Bxf6 {[%clk 0:02:56]} 13. Qxd6 {[%clk 0:03:02]}  Qxd6 {[%clk 0:02:53]} 14. Rxd6 {[%clk 0:03:02]}  Rfc8 {[%clk 0:02:53]} 15. Nd4 {[%clk 0:02:59]}  Be8 {[%clk 0:02:38]} 16. e5 {[%clk 0:01:53]}  Be7 {[%clk 0:02:36]} 17. Ra6 {[%clk 0:01:53]}  b4 {[%clk 0:02:34]} 18. Ncb5 {[%clk 0:01:48]}  Bc5 {[%clk 0:01:50]} 19. Re4 {[%clk 0:01:31]}  Rab8 {[%clk 0:01:07]} 20. Nd6 {[%clk 0:00:46]}  Rc7 {[%clk 0:01:06]} 21. Nb3 {[%clk 0:00:24]}  Bxf2 {[%clk 0:01:01]} 22. Nxe8 {[%clk 0:00:24]}  Rxe8 {[%clk 0:01:01]} 23. Rxb4 {[%clk 0:00:24]}  Bg1 {[%clk 0:00:57]} 24. h3 {[%clk 0:00:23]}  Bh2 {[%clk 0:00:57]} 25. Rb5 {[%clk 0:00:09]}  Rd8 {[%clk 0:00:53]} 26. c3 {[%clk 0:00:09]}  h5 {[%clk 0:00:48]} 27. Nd4 {[%clk 0:00:08]}  Bf4 {[%clk 0:00:45]} 28. a4 {[%clk 0:00:06]}  Be3 {[%clk 0:00:34]} 29. Rc6 {[%clk 0:00:05]}  Rcd7 {[%clk 0:00:32]} 30. Nb3 {[%clk 0:00:02]}  Rd1+ {[%clk 0:00:29]} 31. Ka2 {[%clk 0:00:02]}  Rg1 {[%clk 0:00:29]} 32. g4 {[%clk 0:00:01]}  hxg4 {[%clk 0:00:28]} 33. hxg4 {[%clk 0:00:02]}  Rxg4 {[%clk 0:00:29]} 34. a5 {[%clk 0:00:02]}  Rd1 {[%clk 0:00:25]} 35. Rb4 {[%clk 0:00:02]}  Rg5 {[%clk 0:00:23]} 36. Rb8+ {[%clk 0:00:02]}  Kh7 {[%clk 0:00:23]} 37. Rc7 {[%clk 0:00:02]}  Kg6 {[%clk 0:00:22]} 38. Rbb7 {[%clk 0:00:03]}  Rf1 {[%clk 0:00:22]} 39. Rxa7 {[%clk 0:00:03]}  Bxa7 {[%clk 0:00:20]} 40. Rxa7 {[%clk 0:00:04]}  Rxe5 {[%clk 0:00:20]} 41. Nd4 {[%clk 0:00:04]}  f5 {[%clk 0:00:19]} 42. b4 {[%clk 0:00:04]}  f4 {[%clk 0:00:18]} 43. Kb3 {[%clk 0:00:01]}  f3 {[%clk 0:00:17]} 44. Nxf3 {[%clk 0:00:02]}  Rxf3 {[%clk 0:00:18]} 45. a6 {[%clk 0:00:03]}  Re1 {[%clk 0:00:16]} 46. Rb7 {[%clk 0:00:02]}  Ra1 {[%clk 0:00:16]} 47. a7 {[%clk 0:00:02]}  e5 {[%clk 0:00:16]} 48. b5 {[%clk 0:00:02]}  Rf6 {[%clk 0:00:15]} 49. b6 {[%clk 0:00:02]}  e4 {[%clk 0:00:10]} 50. c4 {[%clk 0:00:01]}  e3 {[%clk 0:00:09]} 51. Kb2 {[%clk 0:00:02]}  Rxb6+ {[%clk 0:00:08]} 52. Rxb6+ {[%clk 0:00:02]}  Kf5 {[%clk 0:00:07]} 53. Kxa1 {[%clk 0:00:03]}  e2 {[%clk 0:00:08]} 54. Rb1 {[%clk 0:00:04]} 1-0


[Site "https://www.chess.com"]

[Event "Titled Tuesday Blitz October 19 2021"]
[White "Abarca Gonzalez, Nicolas"]
[Black "Weichhold, Pawel"]
[WhiteFideId "3409422"]
[BlackFideId "1139703"]
[WhiteElo "2504"]
[BlackElo "2309"]
[Result "1-0"]
[Round "09"]
[TimeControl "180+1"]
[Date "2021.10.19"]
[WhiteClock "0:01:27"]
[BlackClock "0:00:07"]

1. e4 {[%clk 0:03:00]}  c5 {[%clk 0:02:59]} 2. Nf3 {[%clk 0:03:00]}  Nc6 {[%clk 0:02:59]} 3. Bb5 {[%clk 0:02:59]}  g6 {[%clk 0:02:59]} 4. Bxc6 {[%clk 0:02:59]}  dxc6 {[%clk 0:02:59]} 5. e5 {[%clk 0:03:00]}  Bg4 {[%clk 0:02:55]} 6. O-O {[%clk 0:03:00]}  Bg7 {[%clk 0:02:54]} 7. Re1 {[%clk 0:03:00]}  Qc7 {[%clk 0:02:52]} 8. Nc3 {[%clk 0:03:00]}  Bxf3 {[%clk 0:02:36]} 9. Qxf3 {[%clk 0:03:01]}  Bxe5 {[%clk 0:02:35]} 10. Ne4 {[%clk 0:03:02]}  Bg7 {[%clk 0:02:21]} 11. d3 {[%clk 0:02:59]}  b6 {[%clk 0:02:12]} 12. Bf4 {[%clk 0:02:53]}  e5 {[%clk 0:01:57]} 13. Bg5 {[%clk 0:02:53]}  f5 {[%clk 0:01:38]} 14. Nd2 {[%clk 0:02:51]}  Nf6 {[%clk 0:01:30]} 15. Nc4 {[%clk 0:02:50]}  O-O {[%clk 0:01:24]} 16. Nxe5 {[%clk 0:02:48]}  Nd5 {[%clk 0:01:15]} 17. c4 {[%clk 0:02:42]}  Bxe5 {[%clk 0:01:10]} 18. cxd5 {[%clk 0:02:41]}  Rae8 {[%clk 0:00:57]} 19. dxc6 {[%clk 0:02:39]}  Bxb2 {[%clk 0:00:46]} 20. Rab1 {[%clk 0:02:36]}  Bc3 {[%clk 0:00:45]} 21. Rxe8 {[%clk 0:02:25]}  Rxe8 {[%clk 0:00:46]} 22. Bf4 {[%clk 0:02:25]}  Qe7 {[%clk 0:00:24]} 23. h4 {[%clk 0:02:15]}  Qe2 {[%clk 0:00:17]} 24. Qd5+ {[%clk 0:02:09]}  Qe6 {[%clk 0:00:16]} 25. Qf3 {[%clk 0:01:57]}  Qe2 {[%clk 0:00:17]} 26. Qxe2 {[%clk 0:01:48]}  Rxe2 {[%clk 0:00:16]} 27. c7 {[%clk 0:01:49]}  Re8 {[%clk 0:00:17]} 28. Rb3 {[%clk 0:01:47]}  Bd4 {[%clk 0:00:16]} 29. Ra3 {[%clk 0:01:46]}  a5 {[%clk 0:00:14]} 30. Rb3 {[%clk 0:01:44]}  c4 {[%clk 0:00:14]} 31. dxc4 {[%clk 0:01:43]}  Kf7 {[%clk 0:00:12]} 32. Rd3 {[%clk 0:01:42]}  Bf6 {[%clk 0:00:11]} 33. Rd7+ {[%clk 0:01:40]}  Ke6 {[%clk 0:00:12]} 34. Rd6+ {[%clk 0:01:37]}  Kf7 {[%clk 0:00:11]} 35. Rxb6 {[%clk 0:01:29]}  Bxh4 {[%clk 0:00:11]} 36. Rb8 {[%clk 0:01:27]}  Re1+ {[%clk 0:00:07]} 37. Kh2 {[%clk 0:01:27]} 1-0


[Site "https://www.chess.com"]